[Event "*** SCC Grand Prix: Titled Tuesday Blitz"]
[Site "Chess.com"]
[Date "2020.07.14"]
[Round "7"]
[White "Chessdemon2019"]
[Black "pedromartinez91"]
[Result "0-1"]
[WhiteElo "2365"]
[BlackElo "2538"]
[TimeControl "180+1"]
[EndTime "11:18:32 PDT"]
[Termination "pedromartinez91 won by resignation"]

1. e4 {[%clk 0:03:00.9]} 1... e5 {[%clk 0:02:59.2]} 2. Nf3 {[%clk 0:03:00.7]}
2... d5 {[%clk 0:02:59.2]} 3. exd5 {[%clk 0:02:59.5]} 3... e4 {[%clk 0:02:59.3]}
4. Qe2 {[%clk 0:02:59.7]} 4... Nf6 {[%clk 0:02:59.2]} 5. d3 {[%clk 0:03:00]}
5... Qxd5 {[%clk 0:02:56.9]} 6. Nc3 {[%clk 0:02:58.4]} 6... Bb4 {[%clk
0:02:56.2]} 7. dxe4 {[%clk 0:02:57.5]} 7... Qxe4 {[%clk 0:02:53.7]} 8. Bd2
{[%clk 0:02:51.6]} 8... Qxe2+ {[%clk 0:02:50.1]} 9. Bxe2 {[%clk 0:02:51.7]} 9...
O-O {[%clk 0:02:50.3]} 10. O-O-O {[%clk 0:02:50.5]} 10... Bf5 {[%clk 0:02:41.1]}
11. Bc4 {[%clk 0:02:45.1]} 11... Nc6 {[%clk 0:02:39.1]} 12. a3 {[%clk 0:02:42]}
12... Bc5 {[%clk 0:02:37.5]} 13. Rhf1 {[%clk 0:02:41.9]} 13... Bg4 {[%clk
0:02:35.2]} 14. Be2 {[%clk 0:02:38]} 14... Rad8 {[%clk 0:02:34.1]} 15. h3 {[%clk
0:02:37.8]} 15... Bh5 {[%clk 0:02:33.5]} 16. g4 {[%clk 0:02:32.4]} 16... Bg6
{[%clk 0:02:33.3]} 17. Nh4 {[%clk 0:02:32.8]} 17... Nd4 {[%clk 0:02:29.9]} 18.
Nxg6 {[%clk 0:02:31.5]} 18... hxg6 {[%clk 0:02:22.4]} 19. Bc4 {[%clk 0:02:26]}
19... Nf3 {[%clk 0:02:20.1]} 20. Bf4 {[%clk 0:02:12.7]} 20... c6 {[%clk
0:02:19.9]} 21. Bg3 {[%clk 0:02:03.7]} 21... b5 {[%clk 0:02:09.6]} 22. Bb3
{[%clk 0:01:56.5]} 22... a5 {[%clk 0:02:09.1]} 23. Rxd8 {[%clk 0:01:48.7]} 23...
Rxd8 {[%clk 0:02:10]} 24. Rd1 {[%clk 0:01:47.5]} 24... Rxd1+ {[%clk 0:02:00.4]}
25. Kxd1 {[%clk 0:01:47.4]} 25... g5 {[%clk 0:01:41.4]} 26. a4 {[%clk
0:01:36.8]} 26... b4 {[%clk 0:01:37.2]} 27. Ne2 {[%clk 0:01:36.7]} 27... Ne4
{[%clk 0:01:37]} 28. Bc7 {[%clk 0:01:24.6]} 28... Nxf2+ {[%clk 0:01:34.3]} 29.
Kc1 {[%clk 0:01:25]} 29... Nxh3 {[%clk 0:01:32.7]} 30. Bxa5 {[%clk 0:01:24.6]}
30... Nf2 {[%clk 0:01:32.3]} 31. Bc7 {[%clk 0:01:21.1]} 31... Nxg4 {[%clk
0:01:32.3]} 32. a5 {[%clk 0:01:21.3]} 32... Be3+ {[%clk 0:01:23.5]} 33. Kb1
{[%clk 0:01:21]} 33... Nd2+ {[%clk 0:01:23.9]} 34. Ka2 {[%clk 0:01:20.7]} 34...
Nxb3 {[%clk 0:01:23.3]} 35. Kxb3 {[%clk 0:01:21.6]} 35... Nf6 {[%clk 0:01:23.1]}
36. Kxb4 {[%clk 0:01:19.2]} 36... Nd5+ {[%clk 0:01:22.9]} 37. Kc4 {[%clk
0:01:16.4]} 37... Nxc7 {[%clk 0:01:23.1]} 38. Nd4 {[%clk 0:01:16.8]} 38... g4
{[%clk 0:01:20.4]} 39. Nxc6 {[%clk 0:01:13.7]} 39... g3 {[%clk 0:01:20]} 40.
Ne7+ {[%clk 0:01:14]} 40... Kf8 {[%clk 0:01:19]} 41. Nf5 {[%clk 0:01:14.7]}
41... g2 {[%clk 0:01:18.8]} 42. Nxe3 {[%clk 0:01:15.1]} 42... g1=Q {[%clk
0:01:18.9]} 43. Nd5 {[%clk 0:01:15.9]} 43... Nxd5 {[%clk 0:01:05]} 44. Kxd5
{[%clk 0:01:16.1]} 44... Qd1+ {[%clk 0:01:05.6]} 45. Kc5 {[%clk 0:01:13.2]}
45... Qxc2+ {[%clk 0:01:05.8]} 46. Kb6 {[%clk 0:01:13.9]} 46... Qxb2+ {[%clk
0:01:06.1]} 47. Ka7 {[%clk 0:01:14.6]} 47... Qa3 {[%clk 0:01:06]} 48. a6 {[%clk
0:01:15]} 48... g5 {[%clk 0:01:06.3]} 49. Kb7 {[%clk 0:01:14.8]} 49... g4 {[%clk
0:01:06.4]} 50. a7 {[%clk 0:01:14.8]} 50... g3 {[%clk 0:01:06.6]} 51. a8=Q+
{[%clk 0:01:15.2]} 51... Qxa8+ {[%clk 0:01:07.5]} 52. Kxa8 {[%clk 0:01:16.1]}
52... g2 {[%clk 0:01:08.3]} 0-1

[Event "*** SCC Grand Prix: Titled Tuesday Blitz"]
[Site "Chess.com"]
[Date "2020.07.14"]
[Round "7"]
[White "Shushik"]
[Black "Ariadna_Atreides"]
[Result "1-0"]
[WhiteElo "2217"]
[BlackElo "2074"]
[TimeControl "180+1"]
[EndTime "11:18:39 PDT"]
[Termination "Shushik won by checkmate"]

1. e4 {[%clk 0:03:00.9]} 1... c5 {[%clk 0:02:53.5]} 2. Ne2 {[%clk 0:03:00.5]}
2... e5 {[%clk 0:02:51.1]} 3. g3 {[%clk 0:02:56.1]} 3... Nc6 {[%clk 0:02:49.7]}
4. Bg2 {[%clk 0:02:55.8]} 4... Nf6 {[%clk 0:02:43.4]} 5. Nbc3 {[%clk 0:02:54.6]}
5... Nd4 {[%clk 0:02:40.8]} 6. d3 {[%clk 0:02:52.8]} 6... d6 {[%clk 0:02:40.6]}
7. O-O {[%clk 0:02:51.7]} 7... Be7 {[%clk 0:02:37.9]} 8. f4 {[%clk 0:02:51.1]}
8... Bg4 {[%clk 0:02:30.6]} 9. h3 {[%clk 0:02:49]} 9... Bxe2 {[%clk 0:02:29.5]}
10. Nxe2 {[%clk 0:02:48.5]} 10... O-O {[%clk 0:02:25.4]} 11. c3 {[%clk
0:02:44.7]} 11... Nxe2+ {[%clk 0:02:22.3]} 12. Qxe2 {[%clk 0:02:44.4]} 12... b5
{[%clk 0:02:15.9]} 13. g4 {[%clk 0:02:41.7]} 13... Qb6 {[%clk 0:02:02.5]} 14. g5
{[%clk 0:02:34]} 14... Nd7 {[%clk 0:01:58.6]} 15. f5 {[%clk 0:02:31.8]} 15...
c4+ {[%clk 0:01:09.8]} 16. Be3 {[%clk 0:02:30.7]} 16... cxd3 {[%clk 0:01:08.5]}
17. Qxd3 {[%clk 0:02:29.4]} 17... Nc5 {[%clk 0:01:08.1]} 18. Qe2 {[%clk
0:02:26.1]} 18... Qc6 {[%clk 0:01:00]} 19. f6 {[%clk 0:02:23.8]} 19... Bd8
{[%clk 0:00:59.1]} 20. Qh5 {[%clk 0:02:16.9]} 20... Qd7 {[%clk 0:00:36]} 21. Kh1
{[%clk 0:02:00.2]} 21... Re8 {[%clk 0:00:26.8]} 22. Rf2 {[%clk 0:01:50.7]} 22...
Nd3 {[%clk 0:00:10.7]} 23. Rf5 {[%clk 0:01:43.9]} 23... d5 {[%clk 0:00:03.3]}
24. Raf1 {[%clk 0:01:40.1]} 24... dxe4 {[%clk 0:00:02.7]} 25. Bxe4 {[%clk
0:01:35.8]} 25... Bb6 {[%clk 0:00:01.7]} 26. Bxb6 {[%clk 0:01:30.6]} 26... axb6
{[%clk 0:00:02.6]} 27. fxg7 {[%clk 0:01:30]} 27... Ra7 {[%clk 0:00:02.9]} 28.
Rf6 {[%clk 0:01:24.6]} 28... Nf4 {[%clk 0:00:02.7]} 29. Qxh7# {[%clk 0:01:22.9]}
1-0

[Event "*** SCC Grand Prix: Titled Tuesday Blitz"]
[Site "Chess.com"]
[Date "2020.07.14"]
[Round "7"]
[White "Azatic"]
[Black "BogdanDeac"]
[Result "0-1"]
[WhiteElo "2635"]
[BlackElo "2802"]
[TimeControl "180+1"]
[EndTime "11:18:45 PDT"]
[Termination "BogdanDeac won by resignation"]

1. e4 {[%clk 0:03:00.9]} 1... c5 {[%clk 0:02:59]} 2. Nf3 {[%clk 0:03:00.6]} 2...
d6 {[%clk 0:02:59.2]} 3. d4 {[%clk 0:03:01.1]} 3... cxd4 {[%clk 0:03:00.1]} 4.
Nxd4 {[%clk 0:03:01.6]} 4... Nf6 {[%clk 0:03:00.7]} 5. Nc3 {[%clk 0:03:00.6]}
5... a6 {[%clk 0:03:00.8]} 6. Be3 {[%clk 0:02:59.8]} 6... e6 {[%clk 0:03:00.1]}
7. f3 {[%clk 0:02:59.5]} 7... b5 {[%clk 0:02:58.3]} 8. Qd2 {[%clk 0:02:58.9]}
8... Nbd7 {[%clk 0:02:58]} 9. g4 {[%clk 0:02:58.8]} 9... h6 {[%clk 0:02:55.6]}
10. O-O-O {[%clk 0:02:55.4]} 10... b4 {[%clk 0:02:55.8]} 11. Nce2 {[%clk
0:02:54.6]} 11... Qc7 {[%clk 0:02:55.3]} 12. Kb1 {[%clk 0:02:37.8]} 12... d5
{[%clk 0:02:40.2]} 13. exd5 {[%clk 0:02:35.2]} 13... Nxd5 {[%clk 0:02:40.3]} 14.
Nf4 {[%clk 0:02:34.2]} 14... N7f6 {[%clk 0:02:40.3]} 15. h4 {[%clk 0:01:54.8]}
15... Bb7 {[%clk 0:01:55.1]} 16. Rg1 {[%clk 0:01:46.8]} 16... O-O-O {[%clk
0:01:43.7]} 17. g5 {[%clk 0:01:01.5]} 17... hxg5 {[%clk 0:01:42.8]} 18. hxg5
{[%clk 0:01:02.4]} 18... Nxe3 {[%clk 0:01:34.4]} 19. Qxe3 {[%clk 0:00:57.1]}
19... Nd5 {[%clk 0:01:33.1]} 20. Nxd5 {[%clk 0:00:56]} 20... Rxd5 {[%clk
0:01:33.1]} 21. Bd3 {[%clk 0:00:23.6]} 21... Bc5 {[%clk 0:01:15.7]} 22. Be4
{[%clk 0:00:23.2]} 22... Qe5 {[%clk 0:01:08.3]} 23. Qb3 {[%clk 0:00:09.1]} 23...
Rxd4 {[%clk 0:01:05.8]} 24. Bxb7+ {[%clk 0:00:09.2]} 24... Kxb7 {[%clk
0:01:05.9]} 25. Rde1 {[%clk 0:00:09.1]} 25... Qd5 {[%clk 0:01:04.2]} 26. Qa4
{[%clk 0:00:09.5]} 26... Rd8 {[%clk 0:01:01.4]} 27. a3 {[%clk 0:00:07.7]} 27...
bxa3 {[%clk 0:01:00.4]} 28. g6 {[%clk 0:00:08.2]} 28... Rxa4 {[%clk 0:00:59.8]}
0-1

[Event "*** SCC Grand Prix: Titled Tuesday Blitz"]
[Site "Chess.com"]
[Date "2020.07.14"]
[Round "7"]
[White "Evgeny81"]
[Black "Artyom_ChessMate"]
[Result "1-0"]
[WhiteElo "2738"]
[BlackElo "2507"]
[TimeControl "180+1"]
[EndTime "11:18:46 PDT"]
[Termination "Evgeny81 won by resignation"]

1. e4 {[%clk 0:03:00.9]} 1... c5 {[%clk 0:02:58.6]} 2. d4 {[%clk 0:03:01.2]}
2... cxd4 {[%clk 0:02:57.7]} 3. c3 {[%clk 0:03:01.9]} 3... Nf6 {[%clk
0:02:56.1]} 4. e5 {[%clk 0:03:02.2]} 4... Nd5 {[%clk 0:02:55.8]} 5. Nf3 {[%clk
0:03:02.9]} 5... Nc6 {[%clk 0:02:27.7]} 6. cxd4 {[%clk 0:03:03.1]} 6... d6
{[%clk 0:02:25.6]} 7. Bc4 {[%clk 0:03:03.2]} 7... Nb6 {[%clk 0:02:17.6]} 8. Bb3
{[%clk 0:03:03.2]} 8... dxe5 {[%clk 0:02:10.4]} 9. d5 {[%clk 0:03:03.6]} 9...
Na5 {[%clk 0:02:07.3]} 10. Nc3 {[%clk 0:03:03.8]} 10... Nxb3 {[%clk 0:02:07.9]}
11. Qxb3 {[%clk 0:03:03.3]} 11... g6 {[%clk 0:02:03.3]} 12. Nxe5 {[%clk
0:02:59.9]} 12... Bg7 {[%clk 0:02:03.6]} 13. Bf4 {[%clk 0:02:56.2]} 13... O-O
{[%clk 0:02:03.3]} 14. O-O {[%clk 0:02:55.9]} 14... e6 {[%clk 0:01:48.7]} 15. d6
{[%clk 0:02:50.5]} 15... Nd7 {[%clk 0:01:42.1]} 16. Nc4 {[%clk 0:02:41.8]} 16...
b6 {[%clk 0:01:34.2]} 17. a4 {[%clk 0:02:27.3]} 17... Ba6 {[%clk 0:01:24.2]} 18.
Nb5 {[%clk 0:02:25]} 18... Qf6 {[%clk 0:01:19]} 19. Be3 {[%clk 0:02:19.2]} 19...
Bxb5 {[%clk 0:00:59.2]} 20. Qxb5 {[%clk 0:02:13.5]} 20... Ne5 {[%clk 0:00:48.4]}
21. Nxe5 {[%clk 0:01:46.4]} 21... Qxe5 {[%clk 0:00:49.3]} 22. Rfd1 {[%clk
0:01:46]} 22... Qxb2 {[%clk 0:00:37.6]} 23. Qxb2 {[%clk 0:01:43.4]} 23... Bxb2
{[%clk 0:00:38.5]} 24. Ra2 {[%clk 0:01:41.8]} 24... Bf6 {[%clk 0:00:38.1]} 25.
d7 {[%clk 0:01:34.1]} 25... Rfd8 {[%clk 0:00:35.3]} 26. Rc2 {[%clk 0:01:32.9]}
26... Kf8 {[%clk 0:00:34.1]} 27. Rc7 {[%clk 0:01:28.7]} 27... Be7 {[%clk
0:00:19.3]} 28. Bh6+ {[%clk 0:01:25.2]} 28... Kg8 {[%clk 0:00:19.6]} 29. Rdc1
{[%clk 0:01:08.4]} 29... f6 {[%clk 0:00:19.2]} 30. Rc8 {[%clk 0:01:05.4]} 30...
Kf7 {[%clk 0:00:10.1]} 31. Rxa8 {[%clk 0:01:05.4]} 31... Rxa8 {[%clk 0:00:11]}
32. Rc8 {[%clk 0:01:05.5]} 1-0

[Event "*** SCC Grand Prix: Titled Tuesday Blitz"]
[Site "Chess.com"]
[Date "2020.07.14"]
[Round "7"]
[White "margarita_2703"]
[Black "UCantHandleDenker"]
[Result "0-1"]
[WhiteElo "2384"]
[BlackElo "2534"]
[TimeControl "180+1"]
[EndTime "11:18:51 PDT"]
[Termination "UCantHandleDenker won by resignation"]

1. Nf3 {[%clk 0:03:00.9]} 1... Nf6 {[%clk 0:02:58.8]} 2. d4 {[%clk 0:03:00.3]}
2... g6 {[%clk 0:02:57.8]} 3. c4 {[%clk 0:03:00.4]} 3... c5 {[%clk 0:02:55.4]}
4. Nc3 {[%clk 0:02:59.8]} 4... cxd4 {[%clk 0:02:54.3]} 5. Nxd4 {[%clk
0:02:59.4]} 5... Bg7 {[%clk 0:02:54.8]} 6. e4 {[%clk 0:02:59.5]} 6... d6 {[%clk
0:02:54.3]} 7. Be2 {[%clk 0:02:59.5]} 7... O-O {[%clk 0:02:54]} 8. Be3 {[%clk
0:02:59]} 8... Nc6 {[%clk 0:02:53.9]} 9. O-O {[%clk 0:02:58.7]} 9... Bd7 {[%clk
0:02:53.6]} 10. f4 {[%clk 0:02:54.9]} 10... Nxd4 {[%clk 0:02:39.6]} 11. Bxd4
{[%clk 0:02:54]} 11... Bc6 {[%clk 0:02:40.2]} 12. Bf3 {[%clk 0:02:52.6]} 12...
Nd7 {[%clk 0:02:37.8]} 13. Bxg7 {[%clk 0:02:51.5]} 13... Kxg7 {[%clk 0:02:37.6]}
14. b4 {[%clk 0:02:39.6]} 14... Qb6+ {[%clk 0:02:35.3]} 15. Kh1 {[%clk
0:02:37.6]} 15... Qxb4 {[%clk 0:02:33.5]} 16. Nd5 {[%clk 0:02:33.8]} 16... Bxd5
{[%clk 0:02:31.8]} 17. cxd5 {[%clk 0:02:32.1]} 17... Nc5 {[%clk 0:02:29.8]} 18.
Rb1 {[%clk 0:02:30.6]} 18... Qa3 {[%clk 0:02:26.2]} 19. Qe2 {[%clk 0:02:28.3]}
19... Rab8 {[%clk 0:02:16.4]} 20. e5 {[%clk 0:02:27.6]} 20... Qd3 {[%clk
0:02:11.8]} 21. Qb2 {[%clk 0:02:18.2]} 21... Kg8 {[%clk 0:02:03.8]} 22. Rbd1
{[%clk 0:02:14.9]} 22... Qf5 {[%clk 0:01:57.9]} 23. Qd4 {[%clk 0:02:02.6]} 23...
b5 {[%clk 0:01:47]} 24. Rde1 {[%clk 0:01:58.2]} 24... Qd3 {[%clk 0:01:41]} 25.
Qb2 {[%clk 0:01:49.3]} 25... b4 {[%clk 0:01:40.6]} 26. exd6 {[%clk 0:01:46.5]}
26... exd6 {[%clk 0:01:40]} 27. Qf6 {[%clk 0:01:46.4]} 27... Rbd8 {[%clk
0:01:34.4]} 28. h4 {[%clk 0:01:42.1]} 28... Qf5 {[%clk 0:01:29.8]} 29. Qxf5
{[%clk 0:01:40.1]} 29... gxf5 {[%clk 0:01:29.4]} 30. Re7 {[%clk 0:01:40.1]}
30... a5 {[%clk 0:01:25.8]} 31. Rfe1 {[%clk 0:01:37.2]} 31... Kg7 {[%clk
0:01:22.4]} 32. Ra7 {[%clk 0:01:35.9]} 32... a4 {[%clk 0:01:19.7]} 33. Ree7
{[%clk 0:01:33.4]} 33... b3 {[%clk 0:01:13]} 34. axb3 {[%clk 0:01:31.6]} 34...
axb3 {[%clk 0:01:12.8]} 35. Bd1 {[%clk 0:01:30.6]} 35... Rb8 {[%clk 0:01:08.1]}
36. Re1 {[%clk 0:01:23.5]} 36... Kf6 {[%clk 0:01:06.8]} 37. Kh2 {[%clk
0:01:22.2]} 37... Nd3 {[%clk 0:01:02.9]} 38. Rf1 {[%clk 0:01:17.1]} 38... Rb4
{[%clk 0:01:01.7]} 39. g3 {[%clk 0:01:15.4]} 39... Rc8 {[%clk 0:00:59.2]} 40.
Ra6 {[%clk 0:01:13.8]} 40... b2 {[%clk 0:00:56.5]} 41. Be2 {[%clk 0:01:07.9]}
41... Nc5 {[%clk 0:00:53.4]} 42. Rxd6+ {[%clk 0:01:06.1]} 42... Ke7 {[%clk
0:00:52.8]} 43. Rc6 {[%clk 0:00:53.9]} 43... Rxc6 {[%clk 0:00:51.9]} 44. dxc6
{[%clk 0:00:53.8]} 44... b1=Q {[%clk 0:00:51.5]} 0-1

[Event "*** SCC Grand Prix: Titled Tuesday Blitz"]
[Site "Chess.com"]
[Date "2020.07.14"]
[Round "7"]
[White "Alexsur1981"]
[Black "ferdipy"]
[Result "0-1"]
[WhiteElo "2496"]
[BlackElo "2348"]
[TimeControl "180+1"]
[EndTime "11:18:57 PDT"]
[Termination "ferdipy won on time"]

1. e4 {[%clk 0:03:00.9]} 1... e6 {[%clk 0:02:58.9]} 2. d4 {[%clk 0:02:58.9]}
2... d5 {[%clk 0:02:57.2]} 3. Nc3 {[%clk 0:02:58.2]} 3... Bb4 {[%clk 0:02:54.5]}
4. e5 {[%clk 0:02:58.1]} 4... c5 {[%clk 0:02:53.5]} 5. a3 {[%clk 0:02:57.4]}
5... Bxc3+ {[%clk 0:02:53.3]} 6. bxc3 {[%clk 0:02:58.3]} 6... Ne7 {[%clk
0:02:54.1]} 7. Qg4 {[%clk 0:02:40.6]} 7... Qc7 {[%clk 0:02:54.1]} 8. Qxg7 {[%clk
0:02:36.1]} 8... Rg8 {[%clk 0:02:53.5]} 9. Qxh7 {[%clk 0:02:35.4]} 9... cxd4
{[%clk 0:02:51.7]} 10. Ne2 {[%clk 0:02:34.1]} 10... dxc3 {[%clk 0:02:49.5]} 11.
f4 {[%clk 0:02:32.6]} 11... Nbc6 {[%clk 0:02:47.7]} 12. Be3 {[%clk 0:02:28.5]}
12... Bd7 {[%clk 0:02:38.4]} 13. g3 {[%clk 0:02:19]} 13... O-O-O {[%clk
0:02:32.4]} 14. Qxf7 {[%clk 0:02:14.4]} 14... Rdf8 {[%clk 0:02:30.9]} 15. Qh5
{[%clk 0:02:13.2]} 15... Rh8 {[%clk 0:02:28]} 16. Qg4 {[%clk 0:02:09.7]} 16...
d4 {[%clk 0:02:24]} 17. Bf2 {[%clk 0:02:03.6]} 17... d3 {[%clk 0:02:21.4]} 18.
cxd3 {[%clk 0:02:01.4]} 18... c2 {[%clk 0:02:17.2]} 19. Bg2 {[%clk 0:01:53.9]}
19... Na5 {[%clk 0:02:17.2]} 20. O-O {[%clk 0:01:48.3]} 20... Nb3 {[%clk
0:02:16.1]} 21. Rae1 {[%clk 0:01:46.7]} 21... Rfg8 {[%clk 0:02:10.6]} 22. Qf3
{[%clk 0:01:44.7]} 22... Nd2 {[%clk 0:02:10.7]} 23. Qe3 {[%clk 0:01:43.2]} 23...
Nxf1 {[%clk 0:02:08.8]} 24. Rxf1 {[%clk 0:01:42.8]} 24... Bc6 {[%clk 0:01:39.7]}
25. Qxa7 {[%clk 0:01:39.7]} 25... Bxg2 {[%clk 0:01:36.4]} 26. Kxg2 {[%clk
0:01:30.6]} 26... Qc6+ {[%clk 0:01:36.7]} 27. Kg1 {[%clk 0:01:25.8]} 27... Rxh2
{[%clk 0:01:33.5]} 28. Qc5 {[%clk 0:01:02.8]} 28... Qxc5 {[%clk 0:01:18.5]} 29.
Bxc5 {[%clk 0:01:00.9]} 29... Rxe2 {[%clk 0:01:19.1]} 30. Bxe7 {[%clk
0:00:59.8]} 30... Rxg3+ {[%clk 0:01:18.4]} 31. Kh1 {[%clk 0:00:59.2]} 31... Rxd3
{[%clk 0:01:18.8]} 32. f5 {[%clk 0:00:50.8]} 32... Rd1 {[%clk 0:01:18.3]} 33.
Kg1 {[%clk 0:00:46.8]} 33... c1=Q {[%clk 0:01:15.1]} 0-1

[Event "*** SCC Grand Prix: Titled Tuesday Blitz"]
[Site "Chess.com"]
[Date "2020.07.14"]
[Round "7"]
[White "NemtsevIgor"]
[Black "BikingBrian"]
[Result "1-0"]
[WhiteElo "2342"]
[BlackElo "2204"]
[TimeControl "180+1"]
[EndTime "11:18:58 PDT"]
[Termination "NemtsevIgor won by checkmate"]

1. d4 {[%clk 0:03:00.9]} 1... Nf6 {[%clk 0:02:58.2]} 2. Bf4 {[%clk 0:03:00.5]}
2... c5 {[%clk 0:02:57.3]} 3. e3 {[%clk 0:02:59.4]} 3... Qb6 {[%clk 0:02:40]} 4.
Nf3 {[%clk 0:02:56.2]} 4... Qxb2 {[%clk 0:02:33.4]} 5. Nbd2 {[%clk 0:02:56.2]}
5... Qb6 {[%clk 0:02:32.6]} 6. Bd3 {[%clk 0:02:52.4]} 6... cxd4 {[%clk
0:02:32.5]} 7. exd4 {[%clk 0:02:51.6]} 7... g6 {[%clk 0:02:30.5]} 8. O-O {[%clk
0:02:49.7]} 8... Bg7 {[%clk 0:02:30.8]} 9. Rb1 {[%clk 0:02:41]} 9... Qd8 {[%clk
0:02:29.6]} 10. Re1 {[%clk 0:02:37.4]} 10... O-O {[%clk 0:02:29.2]} 11. c4
{[%clk 0:02:37.4]} 11... d6 {[%clk 0:02:29.4]} 12. d5 {[%clk 0:02:29.9]} 12...
Nbd7 {[%clk 0:02:22.3]} 13. Qe2 {[%clk 0:02:28.5]} 13... Re8 {[%clk 0:02:21.2]}
14. h3 {[%clk 0:02:22.9]} 14... Nc5 {[%clk 0:02:21.2]} 15. Bc2 {[%clk
0:02:21.1]} 15... b6 {[%clk 0:02:19.6]} 16. Qe3 {[%clk 0:02:16.8]} 16... Ba6
{[%clk 0:02:04.9]} 17. Bh6 {[%clk 0:02:11.6]} 17... Rc8 {[%clk 0:02:00.6]} 18.
Bxg7 {[%clk 0:02:10.8]} 18... Kxg7 {[%clk 0:02:00.5]} 19. Nd4 {[%clk 0:02:07.7]}
19... Bb7 {[%clk 0:01:45.7]} 20. Qg5 {[%clk 0:01:59.6]} 20... Kh8 {[%clk
0:01:34.4]} 21. N2f3 {[%clk 0:01:47.2]} 21... Ncd7 {[%clk 0:01:30.6]} 22. Bd3
{[%clk 0:01:38.4]} 22... Nc5 {[%clk 0:01:15.8]} 23. Bc2 {[%clk 0:01:29.8]} 23...
Ncd7 {[%clk 0:01:12.5]} 24. Bb3 {[%clk 0:01:28.7]} 24... Nc5 {[%clk 0:01:10.1]}
25. Qh6 {[%clk 0:01:27]} 25... Nxb3 {[%clk 0:01:00.1]} 26. axb3 {[%clk
0:01:24.8]} 26... a5 {[%clk 0:00:58.1]} 27. Ng5 {[%clk 0:01:22.5]} 27... Rf8
{[%clk 0:00:40.1]} 28. Re4 {[%clk 0:01:21.9]} 28... e5 {[%clk 0:00:20.6]} 29.
Ndf3 {[%clk 0:00:55.1]} 29... Qe7 {[%clk 0:00:14.7]} 30. Rh4 {[%clk 0:00:54.1]}
30... Rg8 {[%clk 0:00:11.4]} 31. Nxh7 {[%clk 0:00:51.9]} 31... Nh5 {[%clk
0:00:10.5]} 32. Nf6# {[%clk 0:00:46.2]} 1-0

[Event "*** SCC Grand Prix: Titled Tuesday Blitz"]
[Site "Chess.com"]
[Date "2020.07.14"]
[Round "7"]
[White "Morshynska"]
[Black "saraswathii"]
[Result "0-1"]
[WhiteElo "2180"]
[BlackElo "2338"]
[TimeControl "180+1"]
[EndTime "11:19:00 PDT"]
[Termination "saraswathii won by resignation"]

1. e4 {[%clk 0:03:00.9]} 1... c5 {[%clk 0:02:59.9]} 2. Nf3 {[%clk 0:03:00.1]}
2... e6 {[%clk 0:03:00]} 3. d4 {[%clk 0:02:58.2]} 3... cxd4 {[%clk 0:02:59.9]}
4. Nxd4 {[%clk 0:02:59.1]} 4... Nf6 {[%clk 0:02:57.4]} 5. Nc3 {[%clk 0:02:57.2]}
5... Nc6 {[%clk 0:02:57.2]} 6. Nxc6 {[%clk 0:02:54.6]} 6... bxc6 {[%clk
0:02:54.5]} 7. e5 {[%clk 0:02:54.8]} 7... Nd5 {[%clk 0:02:54.3]} 8. Ne4 {[%clk
0:02:54.6]} 8... f5 {[%clk 0:02:54.5]} 9. exf6 {[%clk 0:02:48.8]} 9... Nxf6
{[%clk 0:02:54.1]} 10. Nd6+ {[%clk 0:02:45.7]} 10... Bxd6 {[%clk 0:02:42.1]} 11.
Qxd6 {[%clk 0:02:46.6]} 11... Qe7 {[%clk 0:02:42.3]} 12. Bf4 {[%clk 0:02:36.1]}
12... Qxd6 {[%clk 0:02:39.2]} 13. Bxd6 {[%clk 0:02:37]} 13... Ne4 {[%clk
0:02:39.2]} 14. Be5 {[%clk 0:02:32.6]} 14... O-O {[%clk 0:02:33.3]} 15. f3
{[%clk 0:02:22.5]} 15... Nf6 {[%clk 0:02:30.4]} 16. Bd6 {[%clk 0:02:08.8]} 16...
Rf7 {[%clk 0:02:29.2]} 17. c4 {[%clk 0:02:02]} 17... Ba6 {[%clk 0:02:27.2]} 18.
O-O-O {[%clk 0:01:57.8]} 18... Ne8 {[%clk 0:02:15.9]} 19. Be2 {[%clk 0:01:43.7]}
19... Nxd6 {[%clk 0:02:14.9]} 20. Rxd6 {[%clk 0:01:44.6]} 20... Kf8 {[%clk
0:02:10.1]} 21. Rhd1 {[%clk 0:01:42.5]} 21... Ke8 {[%clk 0:02:09.8]} 22. g3
{[%clk 0:01:39.2]} 22... Rd8 {[%clk 0:02:04.9]} 23. f4 {[%clk 0:01:38.6]} 23...
Rf5 {[%clk 0:02:03.4]} 24. b3 {[%clk 0:01:36.6]} 24... Ke7 {[%clk 0:01:59.7]}
25. Bg4 {[%clk 0:01:30.9]} 25... Rf6 {[%clk 0:01:57.7]} 26. h4 {[%clk
0:01:17.8]} 26... Rg6 {[%clk 0:01:49.5]} 27. Bf3 {[%clk 0:01:07.7]} 27... Rxg3
{[%clk 0:01:35.9]} 28. Bxc6 {[%clk 0:01:06.4]} 28... Bc8 {[%clk 0:01:33.9]} 29.
Be4 {[%clk 0:00:55.2]} 29... Rg4 {[%clk 0:01:31.2]} 30. Bxh7 {[%clk 0:00:47.1]}
30... Rxh4 {[%clk 0:01:30.9]} 31. Bc2 {[%clk 0:00:36.1]} 31... Rxf4 {[%clk
0:01:30.2]} 32. R6d2 {[%clk 0:00:34.9]} 32... Rdf8 {[%clk 0:01:24.2]} 33. Kb2
{[%clk 0:00:32.4]} 33... Rf2 {[%clk 0:01:23]} 34. c5 {[%clk 0:00:28]} 34... Rxd2
{[%clk 0:01:22.1]} 35. Rxd2 {[%clk 0:00:28.9]} 35... g5 {[%clk 0:01:17.8]} 36.
Rg2 {[%clk 0:00:25.9]} 36... Rg8 {[%clk 0:01:17.4]} 37. Kc3 {[%clk 0:00:21.7]}
37... Bb7 {[%clk 0:01:17.3]} 38. Rg1 {[%clk 0:00:19.9]} 38... g4 {[%clk
0:01:17]} 39. Kd4 {[%clk 0:00:19.9]} 39... g3 {[%clk 0:01:17]} 40. Be4 {[%clk
0:00:19.7]} 40... Rg4 {[%clk 0:01:15.6]} 0-1